fUSD/lending_fUSD_20260320
["ID","MTS","AMOUNT","RATE_DAILY","PERIOD"]
[408641033,1774036277724,-500.0,0.00030684,120]
[408641034,1774036277733,-5739.37,0.00030684,7]
[408641035,1774036277743,-500.0,0.00030684,120]
[408641036,1774036277752,-500.0,0.00030684,2]
[408641037,1774036277761,-300.0,0.00030684,2]
[408641038,1774036277771,-500.0,0.00030684,30]
[408641039,1774036277780,-1366.47,0.00030684,14]
[408641040,1774036277791,-500.0,0.00030684,12]
[408641041,1774036277801,-685.6,0.00030684,14]
[408641042,1774036277811,-500.0,0.00030684,30]
[408641043,1774036277821,-300.0,0.00030684,2]
[408641044,1774036277831,-875.21,0.00030684,2]
[408641045,1774036277840,-536.33,0.00030684,120]
[408641046,1774036277850,-966.16,0.00030684,120]
[408641047,1774036277860,-500.0,0.00030684,120]
[408641048,1774036277869,-1260.41,0.00030684,2]
[408641049,1774036277879,-578.97267203,0.00030684,2]
[408641050,1774036277888,-500.0,0.00030684,120]
[408641051,1774036277898,-1443.59,0.00030684,7]
[408641052,1774036277907,-500.0,0.00030684,120]
[408641053,1774036277917,-500.0,0.00030684,5]
[408641054,1774036277927,-2059.09,0.00030684,120]
[408641055,1774036277936,-1117.66,0.00030684,120]
[408641056,1774036277946,-8442.63,0.00030684,60]
[408641057,1774036277956,-500.0,0.00030684,120]
[408641058,1774036277965,-3352.31,0.00030684,120]
[408641059,1774036277975,-547.44,0.00030684,30]
[408641060,1774036277984,-2137.61,0.00030684,120]
[408641061,1774036277993,-2648.26,0.00030684,120]
[408641062,1774036278003,-500.0,0.00030684,120]
[408641063,1774036278013,-500.0,0.00030684,120]
[408641064,1774036278023,-15731.63,0.00030684,120]
[408641065,1774036278032,-500.0,0.00030684,2]
[408641066,1774036278042,-1772.79,0.00030684,120]
[408641067,1774036278052,-2157.0,0.00030684,2]
[408641068,1774036278061,-575.18,0.00030684,120]
[408641069,1774036278070,-1441.92,0.00030684,120]
[408641070,1774036278080,-620.5,0.00030684,2]
[408641071,1774036278089,-810.21,0.00030684,2]
[408641072,1774036278099,-1141.42,0.00030684,7]
[408641073,1774036278108,-500.0,0.00030684,90]
[408641074,1774036278117,-500.0,0.00030684,2]
[408641075,1774036278127,-3708.46,0.00030684,2]
[408641076,1774036278137,-500.0,0.00030684,120]
[408641077,1774036278146,-379.42,0.00030692,7]
[408641078,1774036278155,-244.28,0.00030692,7]
[408641079,1774036278164,-209.18,0.00030708,7]
[408641080,1774036278174,-273.19,0.00030789,120]
[408641081,1774036278183,-1001.38,0.00030833,30]
[408641082,1774036278192,-1620.84485458,0.0003084,2]
[408641083,1774036278201,-185.95,0.00030945,7]
[408641084,1774036278210,-959.05495093,0.00030957,60]
[408641085,1774036278220,-959.05495092,0.00030957,60]
[408641086,1774036278229,-500.0,0.00030958,120]
[408641087,1774036278238,-500.0,0.00030958,120]
[408641088,1774036278248,-306.55391552,0.00030958,120]
[408641089,1774036278257,-500.0,0.00030958,120]
[408641090,1774036278266,-852.59,0.00030958,120]
[408641091,1774036278275,-500.0,0.00030958,120]
[408641092,1774036278283,-500.0,0.00030958,2]
[408641093,1774036278292,-500.0,0.00030958,2]
[408641094,1774036278301,-500.0,0.00030958,120]
[408641095,1774036278310,-915.83,0.00030958,120]
[408641096,1774036278319,-2459.36,0.00030958,2]
[408641097,1774036278328,-752.86,0.00030958,2]
[408641098,1774036278338,-500.0,0.00030958,120]
[408641099,1774036278347,-500.0,0.00030958,120]
[408641100,1774036278356,-500.0,0.00030958,120]
[408641101,1774036278365,-500.0,0.00030958,120]
[408641102,1774036278374,-816.89,0.00030958,120]
[408641103,1774036278384,-500.0,0.00030958,120]
[408641104,1774036278393,-3098.0,0.00030958,120]
[408641105,1774036278402,-1052.59,0.00030958,120]
[408641106,1774036278412,-500.0,0.00030958,120]
[408641107,1774036278421,-4592.52,0.00030958,120]
[408641108,1774036278431,-587.08,0.00030958,120]
[408641109,1774036278440,-3548.68,0.00030958,120]
[408641110,1774036278449,-500.0,0.00030958,120]
[408641111,1774036278458,-1044.81,0.00030958,14]
[408641112,1774036278468,-500.0,0.00030958,7]
[408641113,1774036278478,-500.0,0.00030958,120]
[408641114,1774036278487,-500.0,0.00030958,120]
[408641115,1774036278496,-500.0,0.00030958,120]
[408641116,1774036278514,-500.0,0.00030958,14]
[408641117,1774036278527,-926.21,0.00030958,120]
[408641118,1774036278537,-548.51499923,0.00030958,14]
[408641119,1774036278546,-732.11,0.00030958,120]
[408641120,1774036278555,-824.15,0.00030958,120]
[408641121,1774036278564,-716.03,0.00030958,120]
[408641122,1774036278573,-500.0,0.00030958,120]
[408641123,1774036278582,-729.27,0.00030958,120]
[408641124,1774036278592,-500.0,0.00030958,2]
[408641125,1774036278601,-500.0,0.00030958,120]
[408641126,1774036278611,-919.19,0.00030958,60]
[408641127,1774036278620,-500.0,0.00030958,120]
[408641128,1774036278629,-5739.37,0.00030958,7]
[408641129,1774036278639,-500.0,0.00030958,120]
[408641130,1774036278648,-500.0,0.00030958,2]
[408641131,1774036278658,-300.0,0.00030958,2]
[408641132,1774036278667,-500.0,0.00030958,30]
[408641133,1774036278676,-1366.47,0.00030958,14]
[408641134,1774036278686,-574.16263454,0.00030958,12]
[408641135,1774036278695,-685.6,0.00030958,14]
[408641136,1774036278705,-500.0,0.00030958,30]
[408641137,1774036278715,-300.0,0.00030958,2]
[408641138,1774036278725,-875.21,0.00030958,2]
[408641139,1774036278734,-536.33,0.00030958,120]
[408641140,1774036278744,-966.16,0.00030958,120]
[408641141,1774036278753,-500.0,0.00030958,120]
[408641142,1774036278762,-1260.41,0.00030958,2]
[408641143,1774036278772,-500.0,0.00030958,120]
[408641144,1774036278782,-1443.59,0.00030958,7]
[408641145,1774036278791,-500.0,0.00030958,120]
[408641146,1774036278800,-500.0,0.00030958,5]
[408641147,1774036278810,-2059.09,0.00030958,120]
[408641148,1774036278819,-1117.66,0.00030958,120]
[408641149,1774036278828,-8442.63,0.00030958,60]
[408641150,1774036278837,-500.0,0.00030958,120]
[408641151,1774036278846,-3352.31,0.00030958,120]
[408641152,1774036278856,-547.44,0.00030958,30]
[408641153,1774036278865,-2137.61,0.00030958,120]
[408641154,1774036278874,-2648.26,0.00030958,120]
[408641155,1774036278884,-500.0,0.00030958,120]
[408641156,1774036278895,-500.0,0.00030958,120]
[408641157,1774036278904,-15731.63,0.00030958,120]
[408641158,1774036278914,-500.0,0.00030958,2]
[408641159,1774036278923,-1772.79,0.00030958,120]
[408641160,1774036278933,-2157.0,0.00030958,2]
[408641161,1774036278942,-575.18,0.00030958,120]
[408641162,1774036278951,-1441.92,0.00030958,120]
[408641163,1774036278960,-620.5,0.00030958,2]
[408641164,1774036278969,-810.21,0.00030958,2]
[408641165,1774036278978,-1141.42,0.00030958,7]
[408641166,1774036278987,-500.0,0.00030958,90]
[408641167,1774036278997,-500.0,0.00030958,2]
[408641168,1774036279151,-3708.46,0.00030958,2]
[408641169,1774036279161,-502.0,0.00031,60]
[408641170,1774036279170,-50121.40811382,0.00031,120]
[408641171,1774036279180,-1000.0,0.00031,120]
[408641172,1774036279189,-51940.99995084,0.00031,2]
[408641173,1774036279198,-220.44,0.00031,30]
[408641174,1774036279208,-2983.69,0.00031,7]
[408641175,1774036279217,-979.16666667,0.00031,120]
[408641176,1774036279226,-650.0,0.00031,2]
[408641177,1774036279236,-4353.52,0.00031,7]
[408641178,1774036279245,-486.51,0.00031002,2]
[408641179,1774036279254,-2693.96,0.00031034,7]
[408641180,1774036279265,-1001.38,0.00031042,30]
[408641181,1774036279275,-273.19,0.00031063,120]
[408641182,1774036279284,-1000.0,0.00031229,120]
[408641183,1774036279293,-266.452,0.00031231,120]
[408641184,1774036279302,-959.05495093,0.00031231,60]
[408641185,1774036279312,-959.05495092,0.00031231,60]
[408641186,1774036279321,-443.91275999,0.00031232,120]
[408641187,1774036279331,-500.0,0.00031232,120]
[408641188,1774036279341,-500.0,0.00031232,120]
[408641189,1774036279351,-852.59,0.00031232,120]
[408641190,1774036279360,-500.0,0.00031232,120]
[408641191,1774036279369,-500.0,0.00031232,2]
[408641192,1774036279379,-500.0,0.00031232,2]
[408641193,1774036279389,-633.96787327,0.00031232,120]
[408641194,1774036279399,-915.83,0.00031232,120]
[408641195,1774036279408,-2459.36,0.00031232,2]
[408641196,1774036279418,-752.86,0.00031232,2]
[408641197,1774036279429,-500.0,0.00031232,120]
[408641198,1774036279439,-500.0,0.00031232,120]
[408641199,1774036279449,-500.0,0.00031232,120]
[408641200,1774036279459,-500.0,0.00031232,120]
[408641201,1774036279469,-816.89,0.00031232,120]
[408641202,1774036279479,-500.0,0.00031232,120]
[408641203,1774036279488,-3098.0,0.00031232,120]
[408641204,1774036279497,-1052.59,0.00031232,120]
[408641205,1774036279508,-511.03889485,0.00031232,120]
[408641206,1774036279522,-4592.52,0.00031232,120]
[408641207,1774036279531,-587.08,0.00031232,120]
[408641208,1774036279540,-3548.68,0.00031232,120]
[408641209,1774036279550,-500.0,0.00031232,120]
[408641210,1774036279561,-1044.81,0.00031232,14]
[408641211,1774036279571,-500.0,0.00031232,7]
[408641212,1774036279580,-500.0,0.00031232,120]
[408641213,1774036279589,-500.0,0.00031232,120]
[408641214,1774036279599,-500.0,0.00031232,120]
[408641215,1774036279609,-500.0,0.00031232,14]
[408641216,1774036279618,-926.21,0.00031232,120]
[408641217,1774036279627,-732.11,0.00031232,120]
[408641218,1774036279640,-824.15,0.00031232,120]
[408641219,1774036279649,-716.03,0.00031232,120]
[408641220,1774036279659,-500.0,0.00031232,120]
[408641221,1774036279669,-729.27,0.00031232,120]
[408641222,1774036279678,-500.0,0.00031232,2]
[408641223,1774036279689,-500.0,0.00031232,120]
[408641224,1774036279698,-919.19,0.00031232,60]
[408641225,1774036279708,-500.0,0.00031232,120]
[408641226,1774036279718,-5739.37,0.00031232,7]
[408641227,1774036279728,-500.0,0.00031232,120]
[408641228,1774036279738,-500.0,0.00031232,2]
[408641229,1774036279747,-300.0,0.00031232,2]
[408641230,1774036279756,-500.0,0.00031232,30]
[408641231,1774036279766,-1366.47,0.00031232,14]
[408641232,1774036279775,-685.6,0.00031232,14]
[408641233,1774036279785,-554.95965517,0.00031232,30]
[408641234,1774036279794,-300.0,0.00031232,2]
[408641235,1774036279804,-875.21,0.00031232,2]
[408641236,1774036279813,-536.33,0.00031232,120]
[408641237,1774036279823,-966.16,0.00031232,120]
[408641238,1774036279833,-500.0,0.00031232,120]
[408641239,1774036279842,-1260.41,0.00031232,2]
[408641240,1774036279851,-500.0,0.00031232,120]
[408641241,1774036279861,-1443.59,0.00031232,7]
[408641242,1774036279870,-500.0,0.00031232,120]
[408641243,1774036279879,-500.0,0.00031232,5]
[408641244,1774036279891,-2059.09,0.00031232,120]
[408641245,1774036279900,-1117.66,0.00031232,120]
[408641246,1774036279909,-8442.63,0.00031232,60]
[408641247,1774036279918,-500.0,0.00031232,120]
[408641248,1774036279927,-3352.31,0.00031232,120]
[408641249,1774036279937,-547.44,0.00031232,30]
[408641250,1774036279946,-2137.61,0.00031232,120]
[408641251,1774036279957,-2648.26,0.00031232,120]
[408641252,1774036279968,-186.66492118,0.00031232,120]
[408641253,1774036279979,-500.0,0.00031232,120]
[408641254,1774036279988,-15731.63,0.00031232,120]
[408641255,1774036279998,-500.0,0.00031232,2]
[408641256,1774036280008,-1772.79,0.00031232,120]
[408641257,1774036280018,-2157.0,0.00031232,2]
[408641258,1774036280029,-575.18,0.00031232,120]
[408641259,1774036280039,-1441.92,0.00031232,120]
[408641260,1774036280050,-620.5,0.00031232,2]
[408641261,1774036280061,-810.21,0.00031232,2]
[408641262,1774036280070,-1141.42,0.00031232,7]
[408641263,1774036280079,-500.0,0.00031232,90]
[408641264,1774036280087,-500.0,0.00031232,2]
[408641265,1774036280098,-3708.46,0.00031232,2]
[408641266,1774036280108,-1001.38,0.0003125,30]
[408641267,1774036280118,-503.0,0.00031258,17]
[408641268,1774036280128,-273.19,0.00031337,120]
[408641269,1774036280139,-571.13,0.00031364,2]
[408641270,1774036280148,-1001.38,0.00031458,30]
[408641271,1774036280157,-1634.21,0.00031459,2]
[408641272,1774036280166,-150.0,0.0003147,2]
[408641273,1774036280176,-198.86130066,0.000315,2]
[408641274,1774036280185,-150.0,0.000315,2]
[408641275,1774036280194,-959.05495093,0.00031505,60]
[408641276,1774036280204,-959.05495092,0.00031505,60]
[408641277,1774036280215,-500.0,0.00031506,120]
[408641278,1774036280225,-500.0,0.00031506,120]
[408641279,1774036280234,-852.59,0.00031506,120]
[408641280,1774036280243,-500.0,0.00031506,120]
[408641281,1774036280252,-500.0,0.00031506,2]
[408641282,1774036280262,-500.0,0.00031506,2]
[408641283,1774036280273,-915.83,0.00031506,120]
[408641284,1774036280282,-2459.36,0.00031506,2]
[408641285,1774036280291,-752.86,0.00031506,2]
[408641286,1774036280310,-500.0,0.00031506,120]
[408641287,1774036280322,-500.0,0.00031506,120]
[408641288,1774036280332,-500.0,0.00031506,120]
[408641289,1774036280341,-500.0,0.00031506,120]
[408641290,1774036280351,-816.89,0.00031506,120]
[408641291,1774036280361,-500.0,0.00031506,120]
[408641292,1774036280372,-3098.0,0.00031506,120]
[408641293,1774036280382,-1052.59,0.00031506,120]
[408641294,1774036280392,-4592.52,0.00031506,120]
[408641295,1774036280402,-587.08,0.00031506,120]
[408641296,1774036280411,-3548.68,0.00031506,120]
[408641297,1774036280421,-500.0,0.00031506,120]
[408641298,1774036280431,-1044.81,0.00031506,14]
[408641299,1774036280442,-500.0,0.00031506,7]
[408641300,1774036280452,-500.0,0.00031506,120]
[408641301,1774036280463,-500.0,0.00031506,120]
[408641302,1774036280473,-371.56621374,0.00031506,120]
[408641303,1774036280483,-500.0,0.00031506,14]
[408641304,1774036280493,-926.21,0.00031506,120]
[408641305,1774036280503,-732.11,0.00031506,120]
[408641306,1774036280514,-824.15,0.00031506,120]
[408641307,1774036280524,-716.03,0.00031506,120]
[408641308,1774036280534,-500.0,0.00031506,120]
[408641309,1774036280543,-729.27,0.00031506,120]
[408641310,1774036280554,-500.0,0.00031506,2]
[408641311,1774036280563,-500.0,0.00031506,120]
[408641312,1774036280573,-919.19,0.00031506,60]
[408641313,1774036280582,-500.0,0.00031506,120]
[408641314,1774036280591,-5739.37,0.00031506,7]
[408641315,1774036280601,-500.0,0.00031506,120]
[408641316,1774036280610,-500.0,0.00031506,2]
[408641317,1774036280619,-300.0,0.00031506,2]
[408641318,1774036280629,-500.0,0.00031506,30]
[408641319,1774036280639,-1366.47,0.00031506,14]
[408641320,1774036280649,-685.6,0.00031506,14]
[408641321,1774036280663,-300.0,0.00031506,2]
[408641322,1774036280672,-875.21,0.00031506,2]
[408641323,1774036280681,-536.33,0.00031506,120]
[408641324,1774036280691,-966.16,0.00031506,120]
[408641325,1774036280701,-500.0,0.00031506,120]
[408641326,1774036280711,-1260.41,0.00031506,2]
[408641327,1774036280722,-500.0,0.00031506,120]
[408641328,1774036280733,-1443.59,0.00031506,7]
[408641329,1774036280746,-500.0,0.00031506,120]
[408641330,1774036280756,-500.0,0.00031506,5]
[408641331,1774036280766,-2059.09,0.00031506,120]
[408641332,1774036280776,-1117.66,0.00031506,120]
[408641333,1774036280786,-8442.63,0.00031506,60]
[408641334,1774036280796,-500.0,0.00031506,120]
[408641335,1774036280809,-3352.31,0.00031506,120]
[408641336,1774036280819,-547.44,0.00031506,30]
[408641337,1774036280830,-2137.61,0.00031506,120]
[408641338,1774036280841,-2648.26,0.00031506,120]
[408641339,1774036280855,-500.0,0.00031506,120]
[408641340,1774036280867,-15731.63,0.00031506,120]
[408641341,1774036280877,-500.0,0.00031506,2]
[408641342,1774036280888,-1772.79,0.00031506,120]
[408641343,1774036280899,-2157.0,0.00031506,2]
[408641344,1774036280909,-575.18,0.00031506,120]
[408641345,1774036280919,-1441.92,0.00031506,120]
[408641346,1774036280929,-620.5,0.00031506,2]
[408641347,1774036280940,-810.21,0.00031506,2]
[408641348,1774036280950,-1141.42,0.00031506,7]
[408641349,1774036280959,-500.0,0.00031506,90]
[408641350,1774036280970,-500.0,0.00031506,2]
[408641351,1774036280980,-3708.46,0.00031506,2]
[408641352,1774036280993,-6947.0377,0.000316,2]
[408641353,1774036281005,-273.19,0.00031611,120]
[408641354,1774036281016,-1001.38,0.00031667,30]
[408641355,1774036281027,-500.0,0.0003178,120]
[408641356,1774036281036,-959.05495093,0.0003178,60]
[408641357,1774036281049,-959.05495092,0.0003178,60]
[408641358,1774036281064,-500.0,0.0003178,120]
[408641359,1774036281073,-852.59,0.0003178,120]
[408641360,1774036281083,-500.0,0.0003178,120]
[408641361,1774036281092,-500.0,0.0003178,2]
[408641362,1774036281102,-500.0,0.0003178,2]
[408641363,1774036281112,-915.83,0.0003178,120]
[408641364,1774036281122,-2459.36,0.0003178,2]
[408641365,1774036281131,-752.86,0.0003178,2]
[408641366,1774036281140,-500.0,0.0003178,120]
[408641367,1774036281150,-500.0,0.0003178,120]
[408641368,1774036281160,-500.0,0.0003178,120]
[408641369,1774036281170,-500.0,0.0003178,120]
[408641370,1774036281179,-816.89,0.0003178,120]
[408641371,1774036281188,-500.0,0.0003178,120]
[408641372,1774036281200,-3098.0,0.0003178,120]
[408641373,1774036281210,-1052.59,0.0003178,120]
[408641374,1774036281219,-4592.52,0.0003178,120]
[408641375,1774036281230,-587.08,0.0003178,120]
[408641376,1774036281239,-3548.68,0.0003178,120]
[408641377,1774036281252,-500.0,0.0003178,120]
[408641378,1774036281262,-1044.81,0.0003178,14]
[408641379,1774036281272,-500.0,0.0003178,7]
[408641380,1774036281281,-500.0,0.0003178,120]
[408641381,1774036281291,-500.0,0.0003178,120]
[408641382,1774036281301,-500.0,0.0003178,14]
[408641383,1774036281311,-926.21,0.0003178,120]
[408641384,1774036281322,-732.11,0.0003178,120]
[408641385,1774036281331,-824.15,0.0003178,120]
[408641386,1774036281341,-716.03,0.0003178,120]
[408641387,1774036281351,-500.0,0.0003178,120]
[408641388,1774036281360,-729.27,0.0003178,120]
[408641389,1774036281370,-500.0,0.0003178,2]
[408641390,1774036281381,-500.0,0.0003178,120]
[408641391,1774036281391,-919.19,0.0003178,60]
[408641392,1774036281400,-409.08516082,0.0003178,120]
[408641393,1774036281410,-5739.37,0.0003178,7]
[408641394,1774036281419,-500.0,0.0003178,120]
[408641395,1774036281429,-264.06694032,0.0003178,2]
[408641396,1774036281443,-300.0,0.0003178,2]
[408641397,1774036281453,-500.0,0.0003178,30]
[408641398,1774036281464,-1366.47,0.0003178,14]
[408641399,1774036281475,-685.6,0.0003178,14]
[408641400,1774036281484,-300.0,0.0003178,2]
[408641401,1774036281494,-875.21,0.0003178,2]
[408641402,1774036281505,-536.33,0.0003178,120]
[408641403,1774036281518,-966.16,0.0003178,120]
[408641404,1774036281529,-500.0,0.0003178,120]
[408641405,1774036281539,-1260.41,0.0003178,2]
[408641406,1774036281550,-500.0,0.0003178,120]
[408641407,1774036281561,-1443.59,0.0003178,7]
[408641408,1774036281570,-500.0,0.0003178,120]
[408641409,1774036281580,-500.0,0.0003178,5]
[408641410,1774036281589,-2059.09,0.0003178,120]
[408641411,1774036281599,-1117.66,0.0003178,120]
[408641412,1774036281609,-8442.63,0.0003178,60]
[408641413,1774036281618,-500.0,0.0003178,120]
[408641414,1774036281629,-3352.31,0.0003178,120]
[408641415,1774036281641,-547.44,0.0003178,30]
[408641416,1774036281651,-2137.61,0.0003178,120]
[408641417,1774036281661,-2648.26,0.0003178,120]
[408641418,1774036281671,-341.8999012,0.0003178,120]
[408641419,1774036281682,-15731.63,0.0003178,120]
[408641420,1774036281693,-500.0,0.0003178,2]
[408641421,1774036281703,-1772.79,0.0003178,120]
[408641422,1774036281713,-2157.0,0.0003178,2]
[408641423,1774036281723,-575.18,0.0003178,120]
[408641424,1774036281732,-1441.92,0.0003178,120]
[408641425,1774036281742,-620.5,0.0003178,2]
[408641426,1774036281752,-810.21,0.0003178,2]
[408641427,1774036281763,-1141.42,0.0003178,7]
[408641428,1774036281772,-500.0,0.0003178,90]
[408641429,1774036281782,-573.06385144,0.0003178,2]
[408641430,1774036281792,-3708.46,0.0003178,2]
[408641431,1774036281802,-1001.38,0.00031875,30]
[408641432,1774036281812,-273.19,0.00031885,120]
[408641433,1774036281822,-979.16666667,0.000319,120]
[408641434,1774036281832,-590.7165,0.00032,120]
[408641435,1774036281841,-5000000.0,0.00032,120]
[408641436,1774036281851,-2785.89,0.00032,120]
[408641437,1774036281861,-271.73170731,0.00032,120]
[408641438,1774036281871,-274.78845248,0.00032,120]
[408641439,1774036281880,-259.39813022,0.00032,120]
[408641440,1774036281890,-191.15618403,0.00032,120]
[408641441,1774036281899,-311.28041366,0.00032,120]
[408641442,1774036281909,-191.27544588,0.00032,120]
[408641443,1774036281919,-30000.0,0.00032,120]
[408641444,1774036281929,-1000.0,0.00032,120]
[408641445,1774036281939,-2368.14,0.00032,7]
[408641446,1774036281950,-42344.06,0.00032,7]
[408641447,1774036281960,-959.05495093,0.00032053,60]
[408641448,1774036281970,-959.05495092,0.00032053,60]
[408641449,1774036281980,-500.0,0.00032054,120]
[408641450,1774036281990,-500.0,0.00032054,120]
[408641451,1774036281999,-852.59,0.00032054,120]
[408641452,1774036282009,-500.0,0.00032054,120]
[408641453,1774036282019,-500.0,0.00032054,2]
[408641454,1774036282028,-500.0,0.00032054,2]
[408641455,1774036282038,-915.83,0.00032054,120]
[408641456,1774036282047,-2459.36,0.00032054,2]
[408641457,1774036282057,-752.86,0.00032054,2]
[408641458,1774036282067,-287.52280503,0.00032054,120]
[408641459,1774036282077,-500.0,0.00032054,120]
[408641460,1774036282087,-500.0,0.00032054,120]
[408641461,1774036282099,-500.0,0.00032054,120]
[408641462,1774036282109,-816.89,0.00032054,120]
[408641463,1774036282119,-500.0,0.00032054,120]
[408641464,1774036282129,-3098.0,0.00032054,120]
[408641465,1774036282139,-1052.59,0.00032054,120]
[408641466,1774036282149,-4592.52,0.00032054,120]
[408641467,1774036282368,-587.08,0.00032054,120]
[408641468,1774036282398,-3548.68,0.00032054,120]
[408641469,1774036282409,-500.0,0.00032054,120]
[408641470,1774036282420,-1044.81,0.00032054,14]
[408641471,1774036282430,-500.0,0.00032054,7]
[408641472,1774036282441,-500.0,0.00032054,120]
[408641473,1774036282451,-171.30649822,0.00032054,120]
[408641474,1774036282460,-500.0,0.00032054,14]
[408641475,1774036282471,-926.21,0.00032054,120]
[408641476,1774036282480,-732.11,0.00032054,120]
[408641477,1774036282490,-824.15,0.00032054,120]
[408641478,1774036282500,-716.03,0.00032054,120]
[408641479,1774036282510,-500.0,0.00032054,120]
[408641480,1774036282523,-729.27,0.00032054,120]
[408641481,1774036282534,-500.0,0.00032054,2]
[408641482,1774036282544,-500.0,0.00032054,120]
[408641483,1774036282554,-919.19,0.00032054,60]
[408641484,1774036282564,-5739.37,0.00032054,7]
[408641485,1774036282573,-500.0,0.00032054,120]
[408641486,1774036282583,-300.0,0.00032054,2]
[408641487,1774036282593,-500.0,0.00032054,30]
[408641488,1774036282603,-1366.47,0.00032054,14]
[408641489,1774036282613,-685.6,0.00032054,14]
[408641490,1774036282624,-300.0,0.00032054,2]
[408641491,1774036282633,-875.21,0.00032054,2]
[408641492,1774036282644,-536.33,0.00032054,120]
[408641493,1774036282654,-966.16,0.00032054,120]
[408641494,1774036282663,-500.0,0.00032054,120]
[408641495,1774036282673,-1260.41,0.00032054,2]
[408641496,1774036282683,-500.0,0.00032054,120]
[408641497,1774036282693,-1443.59,0.00032054,7]
[408641498,1774036282703,-500.0,0.00032054,120]
[408641499,1774036282713,-500.0,0.00032054,5]
[408641500,1774036282723,-2059.09,0.00032054,120]
[408641501,1774036282732,-1117.66,0.00032054,120]
[408641502,1774036282742,-8442.63,0.00032054,60]
[408641503,1774036282751,-606.32999867,0.00032054,120]
[408641504,1774036282761,-3352.31,0.00032054,120]
[408641505,1774036282772,-547.44,0.00032054,30]
[408641506,1774036282781,-2137.61,0.00032054,120]
[408641507,1774036282790,-2648.26,0.00032054,120]
[408641508,1774036282800,-15731.63,0.00032054,120]
[408641509,1774036282810,-500.0,0.00032054,2]
[408641510,1774036282820,-1772.79,0.00032054,120]
[408641511,1774036282829,-2157.0,0.00032054,2]
[408641512,1774036282839,-575.18,0.00032054,120]
[408641513,1774036282848,-1441.92,0.00032054,120]
[408641514,1774036282858,-620.5,0.00032054,2]
[408641515,1774036282867,-810.21,0.00032054,2]
[408641516,1774036282877,-1141.42,0.00032054,7]
[408641517,1774036282888,-634.4261985,0.00032054,90]
[408641518,1774036282898,-3708.46,0.00032054,2]
[408641519,1774036282907,-800.0,0.0003207,21]
[408641520,1774036282917,-500.0,0.0003207,21]
[408641521,1774036282927,-1001.38,0.00032083,120]
[408641522,1774036282936,-342.68,0.00032094,14]
[408641523,1774036282946,-273.19,0.00032159,120]
[408641524,1774036282956,-1001.38,0.00032292,120]
[408641525,1774036282965,-1634.21,0.00032298,2]
[408641526,1774036282976,-901.05492959,0.000323,2]
[408641527,1774036282987,-17252.44685382,0.00032317,49]
[408641528,1774036282997,-959.05495093,0.00032327,60]
[408641529,1774036283006,-959.05495092,0.00032327,60]
[408641530,1774036283016,-500.0,0.00032328,120]
[408641531,1774036283027,-594.47944979,0.00032328,120]
[408641532,1774036283036,-852.59,0.00032328,120]